[Event "Early-Titled-Tuesday-Blitz-April-23-2024"]
[Site "Chess.com"]
[Date "2024.04.23"]
[Round "2"]
[White "goodluck06"]
[Black "mishanick"]
[Result "0-1"]
[WhiteElo "2672"]
[BlackElo "3163"]
[TimeControl "180+1"]
[EndTime "8:20:03 PDT"]
[Termination "mishanick won by resignation"]

1. c4 {[%clk 0:03:00.9]} 1... e6 {[%clk 0:02:59.8]} 2. Nf3 {[%clk 0:02:59.7]}
2... d5 {[%clk 0:03:00.7]} 3. e3 {[%clk 0:03:00.1]} 3... Nf6 {[%clk 0:03:01.1]}
4. Nc3 {[%clk 0:03:00.6]} 4... Be7 {[%clk 0:02:59]} 5. b3 {[%clk 0:03:00.5]}
5... O-O {[%clk 0:02:53]} 6. Bb2 {[%clk 0:03:00.7]} 6... c5 {[%clk 0:02:49.3]}
7. cxd5 {[%clk 0:03:00.7]} 7... exd5 {[%clk 0:02:50.2]} 8. d4 {[%clk 0:02:54.8]}
8... Nc6 {[%clk 0:02:50.7]} 9. Be2 {[%clk 0:02:49.4]} 9... Ne4 {[%clk
0:02:51.2]} 10. O-O {[%clk 0:02:48.6]} 10... Bf6 {[%clk 0:02:51.6]} 11. Rc1
{[%clk 0:02:42.4]} 11... Bg4 {[%clk 0:02:50.7]} 12. h3 {[%clk 0:02:33]} 12...
Bxf3 {[%clk 0:02:47.9]} 13. Bxf3 {[%clk 0:02:33.3]} 13... Nxc3 {[%clk
0:02:47.7]} 14. Bxc3 {[%clk 0:02:33.2]} 14... cxd4 {[%clk 0:02:48.3]} 15. Bxd4
{[%clk 0:02:14.6]} 15... Bxd4 {[%clk 0:02:45]} 16. exd4 {[%clk 0:02:14.6]} 16...
Qg5 {[%clk 0:02:41.3]} 17. Rc5 {[%clk 0:02:11]} 17... Rad8 {[%clk 0:02:41.6]}
18. Re1 {[%clk 0:01:54.6]} 18... Rd6 {[%clk 0:02:39.2]} 19. Qd3 {[%clk
0:01:42.1]} 19... Rfd8 {[%clk 0:02:34.1]} 20. a3 {[%clk 0:01:37.1]} 20... g6
{[%clk 0:02:33.4]} 21. b4 {[%clk 0:01:36.5]} 21... Qf6 {[%clk 0:02:28.5]} 22.
Rd1 {[%clk 0:01:35.3]} 22... b6 {[%clk 0:02:27.2]} 23. Rcc1 {[%clk 0:01:33.3]}
23... h5 {[%clk 0:02:26]} 24. b5 {[%clk 0:01:03.6]} 24... Ne7 {[%clk 0:02:25.3]}
25. Rc7 {[%clk 0:01:02.6]} 25... R6d7 {[%clk 0:02:24.3]} 26. Rxd7 {[%clk
0:01:00.7]} 26... Rxd7 {[%clk 0:02:25.2]} 27. a4 {[%clk 0:01:01.1]} 27... Nf5
{[%clk 0:02:24.3]} 28. Qc3 {[%clk 0:01:00.4]} 28... Kg7 {[%clk 0:02:23.2]} 29.
Qc8 {[%clk 0:00:51]} 29... Qe7 {[%clk 0:02:12.8]} 30. Qc6 {[%clk 0:00:46.9]}
30... Rd6 {[%clk 0:02:11.7]} 31. Qc3 {[%clk 0:00:44.1]} 31... Qd8 {[%clk
0:02:02.8]} 32. Re1 {[%clk 0:00:43.6]} 32... Qf6 {[%clk 0:02:02]} 33. Re5 {[%clk
0:00:43.3]} 33... Qd8 {[%clk 0:01:51.7]} 34. Bxh5 {[%clk 0:00:38.2]} 34... f6
{[%clk 0:01:39.9]} 35. Rxf5 {[%clk 0:00:37.9]} 35... gxf5 {[%clk 0:01:39.8]} 36.
Qg3+ {[%clk 0:00:36.3]} 36... Kf8 {[%clk 0:01:38.2]} 37. Qg6 {[%clk 0:00:35.7]}
37... Qd7 {[%clk 0:01:33.8]} 38. Bf3 {[%clk 0:00:31.2]} 38... Re6 {[%clk
0:01:25.2]} 39. g3 {[%clk 0:00:27.4]} 39... Ke7 {[%clk 0:01:07.2]} 40. Kg2
{[%clk 0:00:27.7]} 40... Rd6 {[%clk 0:01:00.8]} 41. h4 {[%clk 0:00:27.4]} 41...
Qe6 {[%clk 0:00:55.6]} 42. h5 {[%clk 0:00:26.5]} 42... f4 {[%clk 0:00:28.5]} 43.
g4 {[%clk 0:00:26.1]} 43... Rd8 {[%clk 0:00:25.8]} 44. Qh6 {[%clk 0:00:20.5]}
44... Rg8 {[%clk 0:00:19.2]} 45. Qxf4 {[%clk 0:00:20.5]} 45... Rg5 {[%clk
0:00:19.7]} 46. Qc7+ {[%clk 0:00:19.3]} 46... Qd7 {[%clk 0:00:20.2]} 47. Qf4
{[%clk 0:00:18.1]} 47... Kf7 {[%clk 0:00:20.5]} 48. Kg3 {[%clk 0:00:17.7]} 48...
Kg7 {[%clk 0:00:20.2]} 49. Be2 {[%clk 0:00:14]} 49... Qe7 {[%clk 0:00:19.8]} 50.
Bd3 {[%clk 0:00:13.1]} 50... Kh8 {[%clk 0:00:18.7]} 51. Bf5 {[%clk 0:00:13.4]}
51... Rg7 {[%clk 0:00:13.6]} 52. Bg6 {[%clk 0:00:12.9]} 52... Qc7 {[%clk
0:00:11.4]} 53. Qxc7 {[%clk 0:00:11.7]} 53... Rxc7 {[%clk 0:00:12.3]} 54. Kf4
{[%clk 0:00:12]} 54... Kg7 {[%clk 0:00:12.5]} 55. Kf5 {[%clk 0:00:12.1]} 55...
Rc2 {[%clk 0:00:04.7]} 56. f4 {[%clk 0:00:12]} 56... Rf2 {[%clk 0:00:04.5]} 57.
Be8 {[%clk 0:00:11.4]} 57... Rd2 {[%clk 0:00:04.1]} 58. g5 {[%clk 0:00:11.2]}
58... fxg5 {[%clk 0:00:05]} 59. fxg5 {[%clk 0:00:11.4]} 59... Rxd4 {[%clk
0:00:05.6]} 60. h6+ {[%clk 0:00:11.9]} 60... Kh7 {[%clk 0:00:06.2]} 61. Bg6+
{[%clk 0:00:09.5]} 61... Kh8 {[%clk 0:00:06.2]} 62. Bf7 {[%clk 0:00:10]} 62...
Kh7 {[%clk 0:00:05.9]} 63. Bg6+ {[%clk 0:00:10]} 63... Kg8 {[%clk 0:00:06.4]}
64. Be8 {[%clk 0:00:06.5]} 64... Rh4 {[%clk 0:00:06.2]} 65. g6 {[%clk
0:00:06.8]} 65... Rxh6 {[%clk 0:00:06.1]} 66. Bf7+ {[%clk 0:00:06.3]} 66... Kg7
{[%clk 0:00:06.4]} 67. Ke5 {[%clk 0:00:06.9]} 67... Rh4 {[%clk 0:00:05.4]} 68.
Kxd5 {[%clk 0:00:06.3]} 68... Rxa4 {[%clk 0:00:06]} 69. Kc6 {[%clk 0:00:07]}
69... Ra5 {[%clk 0:00:06.2]} 70. Be8 {[%clk 0:00:06.8]} 70... Kf8 {[%clk
0:00:06.1]} 71. Bf7 {[%clk 0:00:07.2]} 71... Ke7 {[%clk 0:00:06.5]} 72. Bc4
{[%clk 0:00:06.3]} 72... Kf6 {[%clk 0:00:06.3]} 73. Bf7 {[%clk 0:00:07]} 73...
Ra3 {[%clk 0:00:06.5]} 74. Kb7 {[%clk 0:00:07]} 74... Ra1 {[%clk 0:00:05.6]} 75.
Be8 {[%clk 0:00:07.1]} 75... Re1 {[%clk 0:00:05.6]} 76. Bf7 {[%clk 0:00:06.5]}
76... Re7+ {[%clk 0:00:06.3]} 77. Ka6 {[%clk 0:00:05.9]} 77... Kg7 {[%clk
0:00:06.7]} 78. Bd5 {[%clk 0:00:05]} 78... Kxg6 {[%clk 0:00:02.6]} 79. Bb7
{[%clk 0:00:05.2]} 79... Kf6 {[%clk 0:00:02.7]} 80. Kxa7 {[%clk 0:00:05.3]}
80... Re6 {[%clk 0:00:03.4]} 81. Bc6 {[%clk 0:00:05.6]} 81... Ke7 {[%clk
0:00:04.1]} 82. Kxb6 {[%clk 0:00:05.9]} 82... Kd6 {[%clk 0:00:05]} 83. Ka5
{[%clk 0:00:06.2]} 83... Kc5 {[%clk 0:00:04.9]} 84. Ka6 {[%clk 0:00:06.5]} 84...
Re1 {[%clk 0:00:04.7]} 85. Kb7 {[%clk 0:00:06.8]} 85... Rb1 {[%clk 0:00:04.9]}
86. Kc7 {[%clk 0:00:07.2]} 86... Rb4 {[%clk 0:00:03.9]} 87. b6 {[%clk
0:00:06.5]} 87... Rxb6 {[%clk 0:00:04.1]} 88. Bd7 {[%clk 0:00:07.4]} 88... Rh6
{[%clk 0:00:03.9]} 89. Bc8 {[%clk 0:00:07.7]} 89... Rh7+ {[%clk 0:00:04.3]} 90.
Bd7 {[%clk 0:00:08.2]} 90... Rg7 {[%clk 0:00:04.4]} 91. Kd8 {[%clk 0:00:07.5]}
91... Kd6 {[%clk 0:00:04.8]} 92. Be8 {[%clk 0:00:02.5]} 92... Rg8 {[%clk
0:00:05.3]} 0-1

[Event "Early-Titled-Tuesday-Blitz-April-23-2024"]
[Site "Chess.com"]
[Date "2024.04.23"]
[Round "2"]
[White "Witik"]
[Black "Eliwood44"]
[Result "1/2-1/2"]
[WhiteElo "2757"]
[BlackElo "2471"]
[TimeControl "180+1"]
[EndTime "8:20:03 PDT"]
[Termination "Game drawn - insufficient material"]

1. d4 {[%clk 0:02:59.8]} 1... Nf6 {[%clk 0:02:57.5]} 2. c4 {[%clk 0:02:58.5]}
2... e6 {[%clk 0:02:50.3]} 3. Nf3 {[%clk 0:02:58]} 3... d5 {[%clk 0:02:49.8]} 4.
g3 {[%clk 0:02:55.4]} 4... Bb4+ {[%clk 0:02:48.7]} 5. Bd2 {[%clk 0:02:55.3]}
5... Be7 {[%clk 0:02:48.8]} 6. Bg2 {[%clk 0:02:55.5]} 6... O-O {[%clk 0:02:49]}
7. O-O {[%clk 0:02:56.2]} 7... c6 {[%clk 0:02:49.4]} 8. Na3 {[%clk 0:02:50.8]}
8... b6 {[%clk 0:02:43]} 9. Qc2 {[%clk 0:02:46.4]} 9... Bb7 {[%clk 0:02:40.5]}
10. Rfc1 {[%clk 0:02:35]} 10... a5 {[%clk 0:02:40.2]} 11. cxd5 {[%clk
0:02:24.6]} 11... exd5 {[%clk 0:02:36.7]} 12. Ne5 {[%clk 0:02:23]} 12... Nfd7
{[%clk 0:02:33.9]} 13. Nd3 {[%clk 0:02:14.8]} 13... Na6 {[%clk 0:02:29.7]} 14.
Nf4 {[%clk 0:01:57.6]} 14... Nb4 {[%clk 0:02:25]} 15. Qd1 {[%clk 0:01:52.3]}
15... Nf6 {[%clk 0:02:23.5]} 16. Nb1 {[%clk 0:01:45.6]} 16... Re8 {[%clk
0:02:23.3]} 17. Nc3 {[%clk 0:01:42]} 17... Bd6 {[%clk 0:02:19.8]} 18. a3 {[%clk
0:01:41.6]} 18... Na6 {[%clk 0:02:19.6]} 19. Qc2 {[%clk 0:01:31.1]} 19... Nc7
{[%clk 0:02:13.4]} 20. e4 {[%clk 0:01:14.9]} 20... dxe4 {[%clk 0:02:09]} 21.
Nxe4 {[%clk 0:01:15]} 21... Ncd5 {[%clk 0:02:03.5]} 22. Nxf6+ {[%clk 0:00:58.3]}
22... Qxf6 {[%clk 0:01:59.5]} 23. Nxd5 {[%clk 0:00:53.1]} 23... cxd5 {[%clk
0:01:58.7]} 24. Be3 {[%clk 0:00:47.7]} 24... Rad8 {[%clk 0:01:29.5]} 25. Qb3
{[%clk 0:00:46.5]} 25... Bb8 {[%clk 0:01:29.1]} 26. Rc3 {[%clk 0:00:43.8]} 26...
h5 {[%clk 0:01:27.4]} 27. h4 {[%clk 0:00:41.5]} 27... Qe6 {[%clk 0:01:14.7]} 28.
Rac1 {[%clk 0:00:34.7]} 28... Kh8 {[%clk 0:01:11.5]} 29. Qd1 {[%clk 0:00:31.7]}
29... g6 {[%clk 0:01:10.6]} 30. Qd2 {[%clk 0:00:26.3]} 30... Kh7 {[%clk
0:01:06.9]} 31. Bf1 {[%clk 0:00:23.8]} 31... Rc8 {[%clk 0:01:03.2]} 32. Bf4
{[%clk 0:00:19.5]} 32... Rxc3 {[%clk 0:01:01.2]} 33. Rxc3 {[%clk 0:00:20.2]}
33... Qf5 {[%clk 0:00:47]} 34. Bxb8 {[%clk 0:00:15.1]} 34... Rxb8 {[%clk
0:00:47.9]} 35. Rc7 {[%clk 0:00:15.3]} 35... Kg7 {[%clk 0:00:42.6]} 36. Bd3
{[%clk 0:00:13.5]} 36... Qf6 {[%clk 0:00:42.6]} 37. Qg5 {[%clk 0:00:11.8]} 37...
Qxg5 {[%clk 0:00:35.4]} 38. hxg5 {[%clk 0:00:11.7]} 38... Bc8 {[%clk 0:00:36]}
39. f4 {[%clk 0:00:05.5]} 39... Be6 {[%clk 0:00:34.1]} 40. Kf2 {[%clk
0:00:04.3]} 40... b5 {[%clk 0:00:34.4]} 41. Rc5 {[%clk 0:00:04.2]} 41... b4
{[%clk 0:00:34.3]} 42. a4 {[%clk 0:00:04.4]} 42... Ra8 {[%clk 0:00:26]} 43. b3
{[%clk 0:00:04.5]} 43... Kf8 {[%clk 0:00:24.2]} 44. Bb5 {[%clk 0:00:04.3]} 44...
Ke7 {[%clk 0:00:24.3]} 45. Rc6 {[%clk 0:00:04.6]} 45... Rh8 {[%clk 0:00:18.6]}
46. Ra6 {[%clk 0:00:04.4]} 46... h4 {[%clk 0:00:18.9]} 47. Ra7+ {[%clk
0:00:04.9]} 47... Kf8 {[%clk 0:00:16.4]} 48. Ra8+ {[%clk 0:00:04.9]} 48... Kg7
{[%clk 0:00:16.6]} 49. Rxh8 {[%clk 0:00:05.1]} 49... Kxh8 {[%clk 0:00:17.5]} 50.
gxh4 {[%clk 0:00:05.3]} 50... Bf5 {[%clk 0:00:17.7]} 51. Bc6 {[%clk 0:00:04.1]}
51... Be4 {[%clk 0:00:16.9]} 52. Kg3 {[%clk 0:00:03.9]} 52... Kg7 {[%clk
0:00:17]} 53. Kg4 {[%clk 0:00:04]} 53... Kf8 {[%clk 0:00:12.5]} 54. h5 {[%clk
0:00:03.9]} 54... gxh5+ {[%clk 0:00:12.8]} 55. Kxh5 {[%clk 0:00:04.5]} 55... Ke7
{[%clk 0:00:12.3]} 56. Kg4 {[%clk 0:00:05]} 56... Kd6 {[%clk 0:00:12.1]} 57. Be8
{[%clk 0:00:03.5]} 57... Ke7 {[%clk 0:00:12.2]} 58. Bc6 {[%clk 0:00:03.4]} 58...
Kd6 {[%clk 0:00:11.9]} 59. Bb5 {[%clk 0:00:03.9]} 59... Bc2 {[%clk 0:00:11.8]}
60. f5 {[%clk 0:00:03.3]} 60... Ke7 {[%clk 0:00:08.1]} 61. f6+ {[%clk
0:00:01.7]} 61... Kd6 {[%clk 0:00:08.1]} 62. Kf4 {[%clk 0:00:01.8]} 62... Bxb3
{[%clk 0:00:06.5]} 63. Be8 {[%clk 0:00:02.7]} 63... Bc2 {[%clk 0:00:03.9]} 64.
Bxf7 {[%clk 0:00:02.7]} 64... b3 {[%clk 0:00:04.5]} 65. g6 {[%clk 0:00:02.7]}
65... b2 {[%clk 0:00:04.2]} 66. g7 {[%clk 0:00:03.1]} 66... b1=Q {[%clk
0:00:04.9]} 67. g8=Q {[%clk 0:00:04]} 67... Qf1+ {[%clk 0:00:05.3]} 68. Kg5
{[%clk 0:00:04.4]} 68... Qg2+ {[%clk 0:00:05.5]} 69. Kh6 {[%clk 0:00:05]} 69...
Qxg8 {[%clk 0:00:05.7]} 70. Bxg8 {[%clk 0:00:05.1]} 70... Bxa4 {[%clk
0:00:06.2]} 71. Bxd5 {[%clk 0:00:04.6]} 71... Be8 {[%clk 0:00:05.7]} 72. Ba2
{[%clk 0:00:03.7]} 72... a4 {[%clk 0:00:05.3]} 73. Kg7 {[%clk 0:00:04.1]} 73...
Kc6 {[%clk 0:00:05]} 74. f7 {[%clk 0:00:04.4]} 74... Bxf7 {[%clk 0:00:05.3]} 75.
Kxf7 {[%clk 0:00:05]} 75... Kb5 {[%clk 0:00:06.2]} 76. Ke6 {[%clk 0:00:05.5]}
76... Kb4 {[%clk 0:00:06.7]} 77. d5 {[%clk 0:00:06.1]} 77... Ka3 {[%clk
0:00:06.9]} 78. Bc4 {[%clk 0:00:06.7]} 78... Kb4 {[%clk 0:00:07.3]} 79. Bd3
{[%clk 0:00:07]} 79... a3 {[%clk 0:00:06.8]} 80. Bb1 {[%clk 0:00:06.9]} 80...
Kb3 {[%clk 0:00:07.3]} 81. d6 {[%clk 0:00:07.3]} 81... Kb2 {[%clk 0:00:07.9]}
82. d7 {[%clk 0:00:07.6]} 82... Kxb1 {[%clk 0:00:08.2]} 83. d8=Q {[%clk
0:00:08.2]} 83... a2 {[%clk 0:00:09.1]} 84. Qd1+ {[%clk 0:00:07.1]} 84... Kb2
{[%clk 0:00:09.2]} 85. Qd2+ {[%clk 0:00:07.5]} 85... Kb1 {[%clk 0:00:09.7]} 86.
Qb4+ {[%clk 0:00:07.8]} 86... Ka1 {[%clk 0:00:09.5]} 87. Qc3+ {[%clk 0:00:07.8]}
87... Kb1 {[%clk 0:00:10]} 88. Qb3+ {[%clk 0:00:08]} 88... Ka1 {[%clk
0:00:10.2]} 89. Qc3+ {[%clk 0:00:05.3]} 89... Kb1 {[%clk 0:00:10.5]} 90. Qe1+
{[%clk 0:00:03.5]} 90... Kb2 {[%clk 0:00:10.7]} 91. Qd2+ {[%clk 0:00:04.1]}
91... Kb1 {[%clk 0:00:10.7]} 92. Qb4+ {[%clk 0:00:04.4]} 92... Ka1 {[%clk
0:00:10.6]} 93. Qa3 {[%clk 0:00:03.8]} 93... Kb1 {[%clk 0:00:10.8]} 94. Qb3+
{[%clk 0:00:04.4]} 94... Ka1 {[%clk 0:00:11.3]} 95. Qxa2+ {[%clk 0:00:03.8]}
95... Kxa2 {[%clk 0:00:11.7]} 1/2-1/2

[Event "Early-Titled-Tuesday-Blitz-April-23-2024"]
[Site "Chess.com"]
[Date "2024.04.23"]
[Round "3"]
[White "lcmil"]
[Black "ELPRIMO0O0"]
[Result "0-1"]
[WhiteElo "2466"]
[BlackElo "2644"]
[TimeControl "180+1"]
[EndTime "8:23:28 PDT"]
[Termination "ELPRIMO0O0 won by resignation"]

1. e4 {[%clk 0:03:00.9]} 1... c5 {[%clk 0:02:55.6]} 2. Nf3 {[%clk 0:03:00.2]}
2... Nc6 {[%clk 0:02:53.5]} 3. d4 {[%clk 0:03:00.4]} 3... cxd4 {[%clk
0:02:54.4]} 4. Nxd4 {[%clk 0:03:00.9]} 4... Nf6 {[%clk 0:02:55.1]} 5. Nc3 {[%clk
0:03:01]} 5... e6 {[%clk 0:02:55.6]} 6. Nxc6 {[%clk 0:02:56.3]} 6... bxc6 {[%clk
0:02:55.7]} 7. e5 {[%clk 0:02:56.8]} 7... Nd5 {[%clk 0:02:56.2]} 8. Ne4 {[%clk
0:02:55.9]} 8... Qa5+ {[%clk 0:02:56.8]} 9. Bd2 {[%clk 0:02:43.2]} 9... Nb4
{[%clk 0:02:57.1]} 10. f4 {[%clk 0:02:38.7]} 10... Qd5 {[%clk 0:02:57.5]} 11.
Nc3 {[%clk 0:02:24.9]} 11... Qd4 {[%clk 0:02:57.8]} 12. a3 {[%clk 0:02:19.4]}
12... Bc5 {[%clk 0:02:58.2]} 0-1

[Event "Early-Titled-Tuesday-Blitz-April-23-2024"]
[Site "Chess.com"]
[Date "2024.04.23"]
[Round "3"]
[White "A4RookA3"]
[Black "PattyCastillo"]
[Result "1-0"]
[WhiteElo "2383"]
[BlackElo "2120"]
[TimeControl "180+1"]
[EndTime "8:23:46 PDT"]
[Termination "A4RookA3 won by resignation"]

1. d4 {[%clk 0:03:00.9]} 1... d5 {[%clk 0:02:54.1]} 2. Nc3 {[%clk 0:02:59.2]}
2... Nf6 {[%clk 0:02:53]} 3. Bf4 {[%clk 0:02:57.9]} 3... Bf5 {[%clk 0:02:47]} 4.
e3 {[%clk 0:02:53.9]} 4... a6 {[%clk 0:02:47]} 5. Nf3 {[%clk 0:02:52.6]} 5... e6
{[%clk 0:02:45.7]} 6. Ne5 {[%clk 0:02:51.4]} 6... c5 {[%clk 0:02:42.6]} 7. g4
{[%clk 0:02:50.2]} 7... Bg6 {[%clk 0:02:35.8]} 8. h4 {[%clk 0:02:49.3]} 8... h5
{[%clk 0:02:32.5]} 9. Nxg6 {[%clk 0:02:46.6]} 9... fxg6 {[%clk 0:02:33.4]} 10.
Bd3 {[%clk 0:02:46.7]} 10... Nxg4 {[%clk 0:02:16.2]} 11. Bxg6+ {[%clk
0:02:44.4]} 11... Kd7 {[%clk 0:02:14.9]} 12. dxc5 {[%clk 0:02:41.8]} 12... Bxc5
{[%clk 0:02:10]} 13. Nxd5 {[%clk 0:02:38]} 13... exd5 {[%clk 0:02:02.1]} 14.
Qxd5+ {[%clk 0:02:38.9]} 1-0

[Event "Early-Titled-Tuesday-Blitz-April-23-2024"]
[Site "Chess.com"]
[Date "2024.04.23"]
[Round "3"]
[White "ScofieldMichael01"]
[Black "HanSchut"]
[Result "1-0"]
[WhiteElo "2604"]
[BlackElo "2330"]
[TimeControl "180+1"]
[EndTime "8:24:27 PDT"]
[Termination "ScofieldMichael01 won by resignation"]

1. g3 {[%clk 0:03:00]} 1... Nf6 {[%clk 0:02:59.3]} 2. Bg2 {[%clk 0:03:00.2]}
2... c5 {[%clk 0:02:57.5]} 3. b3 {[%clk 0:03:00]} 3... Nc6 {[%clk 0:02:57.8]} 4.
Bb2 {[%clk 0:03:00.5]} 4... d5 {[%clk 0:02:56.7]} 5. Nf3 {[%clk 0:02:58.9]} 5...
g6 {[%clk 0:02:53.7]} 6. O-O {[%clk 0:02:58.6]} 6... Bg7 {[%clk 0:02:53.5]} 7.
d4 {[%clk 0:02:59.1]} 7... cxd4 {[%clk 0:02:52.3]} 8. Nxd4 {[%clk 0:03:00]} 8...
O-O {[%clk 0:02:52.2]} 9. Nxc6 {[%clk 0:02:53.7]} 9... bxc6 {[%clk 0:02:51.9]}
10. c4 {[%clk 0:02:54.6]} 10... Be6 {[%clk 0:02:49.1]} 11. Nd2 {[%clk
0:02:51.9]} 11... Qd7 {[%clk 0:02:44.8]} 12. Rc1 {[%clk 0:02:50.6]} 12... Rac8
{[%clk 0:02:43.9]} 13. cxd5 {[%clk 0:02:34.8]} 13... cxd5 {[%clk 0:02:43.5]} 14.
Nf3 {[%clk 0:02:34.7]} 14... Rxc1 {[%clk 0:02:40.6]} 15. Qxc1 {[%clk 0:02:34.9]}
15... Rc8 {[%clk 0:02:33.9]} 16. Qa1 {[%clk 0:02:35.2]} 16... Rc2 {[%clk
0:02:18.8]} 17. Nd4 {[%clk 0:02:33.1]} 17... Rc8 {[%clk 0:02:07.7]} 18. Rd1
{[%clk 0:02:28.6]} 18... Bh3 {[%clk 0:02:02.8]} 19. Nf3 {[%clk 0:02:14.8]} 19...
Bxg2 {[%clk 0:02:00.5]} 20. Kxg2 {[%clk 0:02:15.7]} 20... e6 {[%clk 0:01:56.8]}
21. Bxf6 {[%clk 0:02:14]} 1-0

[Event "Early-Titled-Tuesday-Blitz-April-23-2024"]
[Site "Chess.com"]
[Date "2024.04.23"]
[Round "3"]
[White "ReadySkate"]
[Black "Juicy_Fork"]
[Result "1-0"]
[WhiteElo "2651"]
[BlackElo "2471"]
[TimeControl "180+1"]
[EndTime "8:24:32 PDT"]
[Termination "ReadySkate won by resignation"]

1. d4 {[%clk 0:03:00.9]} 1... Nf6 {[%clk 0:02:57.3]} 2. c4 {[%clk 0:03:01.2]}
2... e6 {[%clk 0:02:57.9]} 3. Nc3 {[%clk 0:03:01.7]} 3... Bb4 {[%clk 0:02:58.3]}
4. f3 {[%clk 0:03:02]} 4... O-O {[%clk 0:02:58]} 5. a3 {[%clk 0:03:02]} 5...
Bxc3+ {[%clk 0:02:56.2]} 6. bxc3 {[%clk 0:03:02.9]} 6... c5 {[%clk 0:02:56.5]}
7. e4 {[%clk 0:03:02.8]} 7... d6 {[%clk 0:02:55.4]} 8. Bd3 {[%clk 0:03:02.8]}
8... e5 {[%clk 0:02:54.8]} 9. Ne2 {[%clk 0:03:03.3]} 9... Nc6 {[%clk 0:02:52.3]}
10. O-O {[%clk 0:03:03.6]} 10... b6 {[%clk 0:02:44]} 11. Bg5 {[%clk 0:03:03.3]}
11... h6 {[%clk 0:02:43.8]} 12. Bh4 {[%clk 0:03:03.5]} 12... Ba6 {[%clk
0:02:43.1]} 13. f4 {[%clk 0:03:03.2]} 13... exf4 {[%clk 0:02:39]} 14. Nxf4
{[%clk 0:03:04.1]} 14... g5 {[%clk 0:02:38.5]} 15. Bg3 {[%clk 0:03:04.1]} 15...
gxf4 {[%clk 0:02:32.5]} 16. Bh4 {[%clk 0:03:03.9]} 16... cxd4 {[%clk 0:02:01.6]}
17. Rxf4 {[%clk 0:02:59.4]} 17... Ne5 {[%clk 0:01:45.3]} 18. Bxf6 {[%clk
0:02:56.9]} 18... Qd7 {[%clk 0:01:45]} 19. Qh5 {[%clk 0:02:54.6]} 1-0

[Event "Early-Titled-Tuesday-Blitz-April-23-2024"]
[Site "Chess.com"]
[Date "2024.04.23"]
[Round "3"]
[White "Iball95"]
[Black "EddieMarsalla"]
[Result "1/2-1/2"]
[WhiteElo "2866"]
[BlackElo "2631"]
[TimeControl "180+1"]
[EndTime "8:24:49 PDT"]
[Termination "Game drawn by agreement"]

1. e4 {[%clk 0:02:59.5]} 1... c6 {[%clk 0:02:59.8]} 2. d4 {[%clk 0:02:59.4]}
2... d5 {[%clk 0:03:00.4]} 3. exd5 {[%clk 0:03:00.3]} 3... cxd5 {[%clk
0:03:00.9]} 4. c4 {[%clk 0:03:01]} 4... Nf6 {[%clk 0:03:01.3]} 5. Nc3 {[%clk
0:03:01.6]} 5... Nc6 {[%clk 0:03:01.8]} 6. Nf3 {[%clk 0:03:02.3]} 6... Bg4
{[%clk 0:03:01.3]} 7. cxd5 {[%clk 0:03:02.3]} 7... Nxd5 {[%clk 0:03:00.7]} 8. h3
{[%clk 0:03:02.9]} 8... Bxf3 {[%clk 0:02:53]} 9. Qxf3 {[%clk 0:03:03.8]} 9... e6
{[%clk 0:02:46.5]} 10. Bb5 {[%clk 0:03:04.1]} 10... Rc8 {[%clk 0:02:41]} 11. O-O
{[%clk 0:03:04]} 11... Bb4 {[%clk 0:02:30.9]} 12. Nxd5 {[%clk 0:03:03.6]} 12...
Qxd5 {[%clk 0:02:31.8]} 13. Qxd5 {[%clk 0:03:03.8]} 13... exd5 {[%clk
0:02:32.7]} 14. Be3 {[%clk 0:03:04.4]} 14... a6 {[%clk 0:02:31.1]} 15. Be2
{[%clk 0:03:03.3]} 15... O-O {[%clk 0:02:29]} 16. Rfd1 {[%clk 0:03:02.6]} 16...
Rfe8 {[%clk 0:02:25.7]} 17. Kf1 {[%clk 0:03:01.9]} 17... g6 {[%clk 0:02:24.1]}
18. Rac1 {[%clk 0:03:01.4]} 18... Bf8 {[%clk 0:02:24]} 19. a3 {[%clk 0:02:50.6]}
19... Bg7 {[%clk 0:02:23.3]} 20. Bf3 {[%clk 0:02:49.9]} 20... Ne7 {[%clk
0:02:11.1]} 21. Ke2 {[%clk 0:02:32.4]} 21... Rxc1 {[%clk 0:02:05.1]} 22. Rxc1
{[%clk 0:02:33.3]} 22... Nf5 {[%clk 0:02:05.9]} 23. Kd3 {[%clk 0:02:29.1]} 23...
Nxe3 {[%clk 0:02:02.1]} 24. fxe3 {[%clk 0:02:30]} 24... Rxe3+ {[%clk 0:02:02.8]}
25. Kxe3 {[%clk 0:02:27.3]} 25... Bh6+ {[%clk 0:02:03.1]} 26. Kd3 {[%clk
0:02:27]} 26... Bxc1 {[%clk 0:02:04]} 27. Bxd5 {[%clk 0:02:27.3]} 27... Bxb2
{[%clk 0:02:04]} 28. Bxb7 {[%clk 0:02:27.5]} 28... Bxa3 {[%clk 0:02:03.6]} 29.
Bxa6 {[%clk 0:02:26.2]} 29... Kf8 {[%clk 0:02:04]} 30. Bc4 {[%clk 0:02:25.7]}
30... Ke7 {[%clk 0:01:59.8]} 1/2-1/2

[Event "Early-Titled-Tuesday-Blitz-April-23-2024"]
[Site "Chess.com"]
[Date "2024.04.23"]
[Round "3"]
[White "CMButgood"]
[Black "jaskol95"]
[Result "0-1"]
[WhiteElo "2167"]
[BlackElo "2564"]
[TimeControl "180+1"]
[EndTime "8:24:53 PDT"]
[Termination "jaskol95 won by resignation"]

1. e4 {[%clk 0:03:00.9]} 1... e6 {[%clk 0:03:00.9]} 2. d4 {[%clk 0:03:00.9]}
2... d5 {[%clk 0:03:01.6]} 3. Nc3 {[%clk 0:03:00.2]} 3... Bb4 {[%clk 0:03:01.2]}
4. e5 {[%clk 0:03:00.6]} 4... Ne7 {[%clk 0:03:01.1]} 5. a3 {[%clk 0:03:01.1]}
5... Bxc3+ {[%clk 0:03:01.4]} 6. bxc3 {[%clk 0:03:02]} 6... c5 {[%clk
0:03:01.8]} 7. Qg4 {[%clk 0:03:02.1]} 7... Qc7 {[%clk 0:02:59.8]} 8. Qxg7 {[%clk
0:02:58.2]} 8... Rg8 {[%clk 0:02:59.9]} 9. Qxh7 {[%clk 0:02:58.9]} 9... cxd4
{[%clk 0:03:00.1]} 10. Ne2 {[%clk 0:02:58.8]} 10... Nbc6 {[%clk 0:03:00.8]} 11.
f4 {[%clk 0:02:58.5]} 11... dxc3 {[%clk 0:03:00.6]} 12. Qd3 {[%clk 0:02:58]}
12... d4 {[%clk 0:03:01.2]} 13. Nxd4 {[%clk 0:02:58.2]} 13... Nxd4 {[%clk
0:03:00.4]} 14. Qxd4 {[%clk 0:02:59.1]} 14... Bd7 {[%clk 0:03:00.2]} 15. Rg1
{[%clk 0:02:54.1]} 15... Nf5 {[%clk 0:03:00.7]} 16. Qf2 {[%clk 0:02:53]} 16...
Qc6 {[%clk 0:03:00.8]} 17. g4 {[%clk 0:02:51.2]} 17... Qe4+ {[%clk 0:02:58.9]}
18. Qe2 {[%clk 0:02:36.3]} 18... Qd5 {[%clk 0:02:54.1]} 19. Bg2 {[%clk
0:02:27.5]} 19... Qc5 {[%clk 0:02:48.6]} 20. Qf2 {[%clk 0:02:18.2]} 20... Nd4
{[%clk 0:02:35.7]} 21. Be3 {[%clk 0:02:00]} 21... Nxc2+ {[%clk 0:02:34.6]} 22.
Qxc2 {[%clk 0:01:48]} 22... Qxe3+ {[%clk 0:02:32.2]} 23. Qe2 {[%clk 0:01:36.7]}
23... Qxg1+ {[%clk 0:02:29.7]} 24. Qf1 {[%clk 0:01:37]} 24... Qxf1+ {[%clk
0:02:26.1]} 25. Kxf1 {[%clk 0:01:35.2]} 25... Rxg4 {[%clk 0:02:26.5]} 0-1